fUSD/lending_fUSD_20240227
["ID","MTS","AMOUNT","RATE_DAILY","PERIOD"]
[315437144,1709037034007,-896.8,0.00022999,2]
[315437145,1709037034017,-500.0,0.00022999,2]
[315437146,1709037034026,-896.8,0.00022999,2]
[315437147,1709037034040,-500.0,0.00022999,2]
[315437148,1709037034049,-896.8,0.00022999,2]
[315437149,1709037034060,-500.0,0.00022999,2]
[315437150,1709037034069,-896.8,0.00022999,2]
[315437151,1709037034078,-500.0,0.00022999,2]
[315437152,1709037034088,-896.8,0.00022999,2]
[315437153,1709037034098,-896.8,0.00022999,2]
[315437154,1709037034107,-500.0,0.00022999,2]
[315437155,1709037034116,-896.8,0.00022999,2]
[315437156,1709037034125,-896.8,0.00022999,2]
[315437157,1709037034135,-500.0,0.00022999,2]
[315437158,1709037034145,-500.0,0.00022999,2]
[315437159,1709037034155,-500.0,0.00022999,2]
[315437160,1709037034164,-500.0,0.00022999,2]
[315437161,1709037034173,-500.0,0.00022999,2]
[315437162,1709037034182,-525.55,0.00022999,2]
[315437163,1709037034192,-500.0,0.00022999,2]
[315437164,1709037034201,-500.0,0.00022999,2]
[315437165,1709037034211,-500.0,0.00022999,2]
[315437166,1709037034222,-500.0,0.00022999,2]
[315437167,1709037034233,-500.0,0.00022999,2]
[315437168,1709037034242,-500.0,0.00022999,2]
[315437169,1709037034252,-500.0,0.00022999,2]
[315437170,1709037034261,-500.0,0.00022999,2]
[315437171,1709037034271,-500.0,0.00022999,2]
[315437172,1709037034280,-500.0,0.00022999,2]
[315437173,1709037034290,-500.0,0.00022999,2]
[315437174,1709037034299,-500.0,0.00022999,2]
[315437175,1709037034309,-219.42,0.00022999,2]
[315437176,1709037034319,-500.0,0.00022999,2]
[315437177,1709037034328,-500.0,0.00022999,2]
[315437178,1709037034337,-500.0,0.00022999,2]
[315437179,1709037034346,-500.0,0.00022999,2]
[315437180,1709037034355,-500.0,0.00022999,2]
[315437181,1709037034365,-500.0,0.00022999,2]
[315437182,1709037034374,-500.58877766,0.00022999,2]
[315437183,1709037034383,-500.0,0.00022999,2]
[315437184,1709037034392,-500.0,0.00022999,2]
[315437185,1709037034402,-500.0,0.00022999,2]
[315437186,1709037034411,-500.0,0.00022999,2]
[315437187,1709037034421,-500.0,0.00022999,2]
[315437188,1709037034431,-381.04,0.00022999,2]
[315437189,1709037034440,-1208.68,0.00022999,2]
[315437190,1709037034449,-1208.68,0.00022999,2]
[315437191,1709037034458,-1208.68,0.00022999,2]
[315437192,1709037034469,-1208.68,0.00022999,2]
[315437193,1709037034478,-1208.68,0.00022999,2]
[315437194,1709037034487,-1208.68,0.00022999,2]
[315437195,1709037034496,-1208.68,0.00022999,2]
[315437196,1709037034505,-1208.68,0.00022999,2]
[315437197,1709037034515,-1208.68,0.00022999,2]
[315437198,1709037034524,-551.42,0.00022999,2]
[315437199,1709037034533,-1208.68,0.00022999,2]
[315437200,1709037034542,-500.0,0.00022999,2]
[315437201,1709037034552,-500.0,0.00022999,2]
[315437202,1709037034561,-500.0,0.00022999,2]
[315437203,1709037034570,-500.0,0.00022999,2]
[315437204,1709037034579,-500.0,0.00022999,2]
[315437205,1709037034588,-500.0,0.00022999,2]
[315437206,1709037034597,-500.0,0.00022999,2]
[315437207,1709037034607,-500.0,0.00022999,2]
[315437208,1709037034616,-500.0,0.00022999,2]
[315437209,1709037034625,-500.0,0.00022999,2]
[315437210,1709037034634,-500.0,0.00022999,2]
[315437211,1709037034643,-500.0,0.00022999,2]
[315437212,1709037034652,-500.0,0.00022999,2]
[315437213,1709037034661,-428.66,0.00022999,2]
[315437214,1709037034671,-500.0,0.00022999,2]
[315437215,1709037034680,-500.0,0.00022999,2]
[315437216,1709037034689,-500.0,0.00022999,2]
[315437217,1709037034699,-500.0,0.00022999,2]
[315437218,1709037034708,-500.0,0.00022999,2]
[315437219,1709037034718,-500.0,0.00022999,2]
[315437220,1709037034727,-500.0,0.00022999,2]
[315437221,1709037034737,-500.0,0.00022999,2]
[315437222,1709037034746,-500.0,0.00022999,2]
[315437223,1709037034755,-500.0,0.00022999,2]
[315437224,1709037034764,-500.0,0.00022999,2]
[315437225,1709037034773,-500.0,0.00022999,2]
[315437226,1709037034782,-500.0,0.00022999,2]
[315437227,1709037034791,-385.0,0.00022999,2]
[315437228,1709037034800,-500.0,0.00022999,2]
[315437229,1709037034809,-500.0,0.00022999,2]
[315437230,1709037034818,-500.0,0.00022999,2]
[315437231,1709037034827,-500.0,0.00022999,2]
[315437232,1709037034836,-500.0,0.00022999,2]
[315437233,1709037034845,-500.0,0.00022999,2]
[315437234,1709037034854,-500.0,0.00022999,2]
[315437235,1709037034863,-500.0,0.00022999,2]
[315437236,1709037034872,-500.0,0.00022999,2]
[315437237,1709037034882,-500.0,0.00022999,2]
[315437238,1709037034891,-500.0,0.00022999,2]
[315437239,1709037034900,-500.0,0.00022999,2]
[315437240,1709037034909,-1317.28,0.00022999,2]
[315437241,1709037034918,-1317.28,0.00022999,2]
[315437242,1709037034927,-566.04599148,0.00022999,2]
[315437243,1709037034937,-1317.28,0.00022999,2]
[315437244,1709037034946,-1317.28,0.00022999,2]
[315437245,1709037034955,-1317.28,0.00022999,2]
[315437246,1709037034965,-1317.28,0.00022999,2]
[315437247,1709037034975,-1317.28,0.00022999,2]
[315437248,1709037034984,-1317.28,0.00022999,2]
[315437249,1709037034993,-1317.28,0.00022999,2]
[315437250,1709037035002,-1317.28,0.00022999,2]
[315437251,1709037035012,-500.0,0.00022999,2]
[315437252,1709037035021,-500.0,0.00022999,2]
[315437253,1709037035031,-374.65445737,0.00022999,2]
[315437254,1709037035044,-104852.5963139,0.00023,2]
[315437255,1709037035053,-55931.7922342,0.00023,2]
[315437256,1709037035062,-265.08542436,0.00023,2]
[315437257,1709037035072,-437.08143572,0.00023,2]
[315437258,1709037035082,-2019.0,0.00023,10]
[315437259,1709037035092,-73929.17615023,0.00023,2]
[315437260,1709037035101,-202797.00880367,0.00023,2]
[315437261,1709037035112,-40043.84148332,0.00023,2]
[315437262,1709037035122,-174133.34054253,0.00023,2]
[315437263,1709037035131,-707.0,0.00023,2]
[315437264,1709037035140,-1003.0,0.00023,6]
[315437265,1709037035149,-5000.51301784,0.00023,2]
[315437266,1709037035158,-68888.54083399,0.00023,2]
[315437267,1709037035324,-307.13537821,0.00023,2]
[315437276,1709037037661,-310.18487505,0.000228,2]
[315437277,1709037037671,-310.18487505,0.00022847,2]
[315437278,1709037037680,-310.18487505,0.00022893,2]
[315437279,1709037037690,-1606.64322396,0.000229,2]
[315437280,1709037037699,-170.51556276,0.000229,2]
[315437281,1709037037708,-150.01,0.00022998,2]
[315437282,1709037037718,-6142.60872513,0.00023,4]
[315437283,1709037037731,-3064.47524091,0.00023,4]
[315437284,1709037037800,-0.00127386,0.00023,4]
[315437285,1709037037812,-395.2299961,0.00023,4]
[315437286,1709037037824,-403.05297849,0.00023,4]
[315437287,1709037037835,-1628.10150466,0.00023,4]
[315437288,1709037037847,-6112.7779096,0.00023,4]
[315437289,1709037037859,-4776.63159816,0.00023,4]
[315437290,1709037037870,-153001.19310227,0.00023,4]
[315437291,1709037037881,-22757.39662023,0.00023,4]
[315437309,1709037038086,-587.09654199,0.00023,4]
[315437585,1709037040876,-500.0,0.0002126,2]
[315437587,1709037040886,-2615.87583694,0.00023,4]
[315437594,1709037040937,-5967.57731404,0.00023,4]
[315437596,1709037040948,-320.40177365,0.00023,4]
[315437602,1709037041003,-679.0,0.00023,4]
[315437605,1709037041014,-6315.3454475,0.00023,4]
[315437607,1709037041026,-122684.26513942,0.00023,4]
[315437613,1709037041076,-66895.28085573,0.00023,4]
[315437615,1709037041086,-665.12656123,0.00023,2]
[315437617,1709037041095,-11847.23534915,0.00023,2]
[315437619,1709037041106,-363.72479943,0.00023,2]
[315437621,1709037041118,-708.33524186,0.00023,2]
[315437674,1709037041621,-47290.72320163,0.00023,2]
[315437786,1709037042650,200.0,0.00022885,30]
[315437792,1709037042688,200.0,0.00022885,30]
[315437799,1709037042743,200.0,0.00022885,30]
[315437806,1709037042799,200.0,0.00022885,30]
[315437813,1709037042853,207.36544078,0.00022885,30]
[315437817,1709037042878,-511.74477419,0.00022356,2]
[315437830,1709037042997,-74.64844781,0.00022356,2]
[315437832,1709037043006,-150.01,0.00022999,2]
[315437834,1709037043016,-3733.93155219,0.00023,2]
[315437836,1709037043028,-285.17905,0.00023,2]
[315437839,1709037043040,-470816.16432472,0.00023,2]
[315437841,1709037043049,-585237.18661146,0.00023,2]
[315437843,1709037043062,-15000.0,0.00023,5]
[315437845,1709037043071,-20000.0,0.00023,2]
[315437847,1709037043080,-150.1,0.00023,3]
[315437849,1709037043089,-151.0,0.00023,7]
[315437851,1709037043098,-151.0,0.00023,7]
[315437853,1709037043107,-151.0,0.00023,7]
[315437855,1709037043116,-151.0,0.00023,7]
[315437857,1709037043126,-151.0,0.00023,7]
[315437859,1709037043136,-282.0,0.00023,7]
[315437860,1709037043146,-151.0,0.00023,7]
[315437862,1709037043156,-151.0,0.00023,7]
[315437864,1709037043165,-151.0,0.00023,7]
[315437866,1709037043174,-151.0,0.00023,7]
[315437868,1709037043184,-151.0,0.00023,7]
[315437871,1709037043193,-151.0,0.00023,7]
[315437874,1709037043202,-151.0,0.00023,7]
[315437877,1709037043211,-219.544483,0.00023,7]
[315437879,1709037043220,-151.0,0.00023,7]
[315437883,1709037043231,-230.206723,0.00023,7]
[315437886,1709037043240,-1209.81995107,0.00023,2]
[315437888,1709037043249,-1500.0,0.00023,2]
[315437891,1709037043259,-201.74,0.00023,2]
[315437895,1709037043268,-1876.178721,0.00023,7]
[315437898,1709037043277,-1876.178721,0.00023,7]
[315437900,1709037043286,-1876.178721,0.00023,7]
[315437903,1709037043296,-1876.178721,0.00023,7]
[315437906,1709037043305,-1876.178721,0.00023,7]
[315437909,1709037043314,-1876.178721,0.00023,7]
[315437911,1709037043323,-1876.178721,0.00023,7]
[315437913,1709037043332,-1876.178721,0.00023,7]
[315437915,1709037043341,-190.01748,0.00023,7]
[315437917,1709037043351,-200.86420517,0.00023003,2]
[315437919,1709037043361,-13282.93519449,0.00023005,2]
[315437922,1709037043374,-1113.39404767,0.00023005,2]
[315437924,1709037043383,-150.24,0.00023014,2]
[315437926,1709037043392,-160.64,0.00023014,2]
[315437928,1709037043402,-947.22,0.00023025,2]
[315437930,1709037043411,-484.99,0.00023025,2]
[315437932,1709037043421,-500.0,0.00023025,2]
[315437934,1709037043430,-9324.36592305,0.00023026,2]
[315438091,1709037045601,-407.13101451,0.00023026,2]
[315438093,1709037045691,-3261.30000003,0.00023026,2]
[315438094,1709037045729,-7110.66795,0.00023026,2]
[315438095,1709037045794,-2414.16413814,0.00023026,2]
[315438096,1709037045806,-2907.71207423,0.00023026,2]
[315438097,1709037045815,-500.0,0.00023028,2]
[315438098,1709037045824,-896.8,0.00023028,2]
[315438099,1709037045838,-1208.68,0.00023028,2]
[315438100,1709037045850,-500.0,0.00023028,2]
[315438101,1709037045863,-500.0,0.00023028,2]
[315438102,1709037045875,-500.0,0.00023028,2]
[315438103,1709037045888,-1317.28,0.00023028,2]
[315438104,1709037045899,-7987.21225572,0.00023029,2]
[315438105,1709037045912,-768.06384375,0.00023029,2]
[315438106,1709037045925,-3430.07541432,0.00023029,2]
[315438107,1709037045945,-28403.99386329,0.00023029,2]
[315438108,1709037045963,-11331.61523598,0.00023029,2]
[315438109,1709037046008,-476.91,0.00023029,2]
[315438110,1709037046088,-525.96725467,0.00023029,2]
[315438115,1709037161555,2848.96,0.0003,120]
[315438116,1709037193205,151.0,0.00027988,120]
[315438117,1709037476407,679.92,0.00020279,2]
[315438118,1709037483204,192.15999995,0.00020178,2]
[315438119,1709037563936,42200.04886125,0.00020178,2]
[315438120,1709037563970,195649.54080921,0.00020178,2]
[315438121,1709037577383,151.0,0.00027406,120]
[315438122,1709037737697,-198792.63455922,0.00024,30]
[315438124,1709037830706,-20000.0,0.00024,30]
[315438125,1709037952812,684.52,0.00019079,2]
[315438126,1709037999145,151.0,0.00027475,120]
[315438127,1709038032324,-1946.77657,0.00020548,7]
[315438139,1709038235612,-518.38987877,0.00020899,2]
[315438140,1709038235625,-1370.84726331,0.00020899,2]
[315438141,1709038235637,-1038.81417823,0.00020899,2]
[315438142,1709038235647,-478.094,0.000209,2]
[315438143,1709038235657,-200.0,0.00020929,2]
[315438144,1709038235667,-250.0,0.0002095,2]
[315438145,1709038235677,-9476.8685915,0.00020975,2]
[315438146,1709038235770,-14423.1314085,0.00020975,2]
[315438147,1709038235781,-1852.42,0.00020993,2]
[315438148,1709038235791,-2000.0,0.00020993,2]
[315438149,1709038235801,-500.0,0.00020996,2]
[315438150,1709038235810,-828.52,0.00020997,2]
[315438151,1709038235819,-1000.0,0.00021,2]
[315438152,1709038235830,-300.0,0.00021001,2]
[315438153,1709038235840,-150.0,0.00021001,2]
[315438154,1709038235849,-382.84,0.00021002,2]
[315438155,1709038235858,-150.99,0.00021002,2]
[315438156,1709038235867,-500.0,0.00021002,2]
[315438157,1709038235877,-14536.87,0.00021002,2]
[315438158,1709038235886,-866.09,0.00021004,2]
[315438159,1709038235896,-229.01,0.00021043,2]
[315438160,1709038235905,-250.0,0.00021064,2]
[315438161,1709038235915,-200.0,0.00021133,2]
[315438162,1709038235924,-155.46,0.00021201,2]
[315438163,1709038235933,-200.0,0.00021244,2]
[315438164,1709038235943,-500.0,0.00021259,2]
[315438165,1709038235951,-500.0,0.0002126,2]
[315438166,1709038235961,-155.46,0.00021266,2]
[315438167,1709038235971,-155.46,0.00021331,2]
[315438168,1709038235980,-202.79,0.00021342,2]
[315438169,1709038235989,-499.99,0.00021342,2]
[315438170,1709038235999,-684.52,0.00021343,2]
[315438171,1709038236008,-155.46,0.00021396,2]
[315438172,1709038236018,-171.72,0.00021409,2]
[315438173,1709038236028,-1764.54,0.00021409,2]
[315438175,1709038236037,-1120.97,0.00021409,2]
[315438177,1709038236046,-2041.24831522,0.00021415,2]
[315438179,1709038236055,-338.0,0.00021437,2]
[315438181,1709038236064,-155.46,0.00021461,2]
[315438183,1709038236073,-169.01,0.00021484,2]
[315438185,1709038236083,-163.06,0.00021504,2]
[315438187,1709038236092,-155.46,0.00021526,2]
[315438189,1709038236102,-150.0,0.00021528,2]
[315438191,1709038236111,-211.68,0.0002154,2]
[315438193,1709038236120,-155.46,0.00021591,2]
[315438195,1709038236129,-2698.0,0.000216,2]
[315438197,1709038236138,-258.45968532,0.00021629,2]
[315438199,1709038236147,-1500.0,0.00021645,2]
[315438201,1709038236156,-155.46,0.00021656,2]
[315438203,1709038236165,-8150.0,0.000217,2]
[315438205,1709038236174,-1500.0,0.00021706,2]
[315438207,1709038236183,-166.78,0.00021719,2]
[315438209,1709038236192,-155.46,0.00021721,2]
[315438211,1709038236202,-1000.0,0.00021769,2]
[315438213,1709038236211,-260.36,0.00021769,2]
[315438215,1709038236219,-155.46,0.00021786,2]
[315438217,1709038236228,-500.0,0.00021808,2]
[315438220,1709038236242,-3381.615,0.00021808,2]
[315438222,1709038236254,-155.46,0.00021851,2]
[315438224,1709038236266,-155.46,0.00021916,2]
[315438227,1709038236279,-156.43,0.00021918,2]
[315438229,1709038236291,-158.08,0.00021918,2]
[315438231,1709038236302,-1551.68499428,0.00021978,2]
[315438233,1709038236312,-1659.50679362,0.00021978,2]
[315438235,1709038236323,-5010.80780302,0.00021978,2]
[315438238,1709038236335,-1551.68499428,0.00021979,2]
[315438240,1709038236347,-13918.91056383,0.00021979,2]
[315438242,1709038236359,-38663.64045496,0.0002198,2]
[315438245,1709038236372,-170.57437893,0.0002198,2]
[315438247,1709038236384,-155.46,0.00021981,2]
[315438249,1709038236398,-1551.68499428,0.00021981,2]
[315438252,1709038236410,-649.40069133,0.00021981,2]
[315438254,1709038236422,-911.18792149,0.00021981,2]
[315438257,1709038236440,-649.40069133,0.00021981,2]
[315438260,1709038236460,-151.88119042,0.00021982,2]
[315438262,1709038236474,-558.60659799,0.00021982,2]
[315438264,1709038236490,-151.0472241,0.00021982,2]
[315438267,1709038236504,-911.18792149,0.00021982,2]
[315438269,1709038236516,-2249.39131854,0.00021983,2]
[315438272,1709038236529,-911.18792149,0.00021983,2]
[315438274,1709038236541,-151.88119042,0.00021983,2]
[315438276,1709038236554,-290.47543095,0.00021983,2]
[315438279,1709038236568,-164.49,0.00021983,2]
[315438281,1709038236584,-170.57437893,0.00021983,2]
[315438284,1709038236597,-5010.80780302,0.00021983,2]
[315438286,1709038236609,-631.18360026,0.00021984,2]
[315438291,1709038236653,-538.7588978,0.00021984,2]
[315438294,1709038236668,-400.0,0.00021984,2]
[315438297,1709038236687,-1166.11346599,0.00021984,2]
[315438301,1709038236716,-1144.64290289,0.00021984,2]
[315438306,1709038236748,-499.99,0.00021,2]
[315438308,1709038236761,-10038.21169689,0.00021984,2]
[315438310,1709038236774,-649.40069133,0.00021984,2]
[315438313,1709038236787,-151.0472241,0.00021984,2]
[315438315,1709038236800,-2249.39131854,0.00021984,2]
[315438318,1709038236814,-558.60659799,0.00021985,2]
[315438320,1709038236827,-233.78424893,0.00021985,2]
[315438322,1709038236840,-292.07921235,0.00021985,2]
[315438325,1709038236856,-5010.80780302,0.00021986,2]
[315438328,1709038236868,-1659.50679362,0.00021986,2]
[315438329,1709038236880,-328.02765179,0.00021986,2]
[315438332,1709038236890,-290.47543095,0.00021988,2]
[315438334,1709038236900,-151.88119042,0.00021988,2]
[315438336,1709038236911,-290.47543095,0.00021988,2]
[315438338,1709038236922,-151.0472241,0.00021988,2]
[315438340,1709038236934,-233.78424893,0.00021989,2]
[315438343,1709038236946,-21128.05394164,0.00021989,2]
[315438345,1709038236961,-8469.5568,0.00021989,2]
[315438348,1709038236979,-9066.02971332,0.00021989,2]
[315438351,1709038236991,-1803.89080914,0.00021989,2]
[315438353,1709038237002,-290.47543095,0.0002199,2]
[315438355,1709038237013,-151.0472241,0.0002199,2]
[315438357,1709038237023,-4850.04868947,0.0002199,2]
[315438359,1709038237033,-292.07921235,0.00021991,2]
[315438361,1709038237044,-38663.64045496,0.00021991,2]
[315438364,1709038237063,-2249.39131854,0.00021991,2]
[315438367,1709038237074,-13918.91056383,0.00021992,2]
[315438369,1709038237085,-328.02765179,0.00021992,2]
[315438371,1709038237098,-558.60659799,0.00021992,2]
[315438374,1709038237113,-170.57437893,0.00021993,2]
[315438376,1709038237127,-649.40069133,0.00021993,2]
[315438379,1709038237140,-38663.64045496,0.00021994,2]
[315438381,1709038237153,-1803.89080914,0.00021994,2]
[315438383,1709038237165,-1659.50679362,0.00021994,2]
[315438386,1709038237177,-170.57437893,0.00021994,2]
[315438388,1709038237189,-233.78424893,0.00021994,2]
[315438390,1709038237201,-233.78424893,0.00021995,2]
[315438393,1709038237213,-328.02765179,0.00021995,2]
[315438395,1709038237225,-292.07921235,0.00021995,2]
[315438397,1709038237237,-328.02765179,0.00021995,2]
[315438400,1709038237249,-1803.89080914,0.00021996,2]
[315438402,1709038237262,-1803.89080914,0.00021997,2]
[315438404,1709038237273,-1551.68499428,0.00021997,2]
[315438406,1709038237286,-5010.80780302,0.00021997,2]
[315438409,1709038237297,-1659.50679362,0.00021998,2]
[315438411,1709038237309,-2249.39131854,0.00021998,2]
[315438413,1709038237320,-151.88119042,0.00021998,2]
[315438415,1709038237332,-911.18792149,0.00021999,2]
[315438417,1709038237344,-292.07921235,0.00021999,2]
[315438420,1709038237356,-13918.91056383,0.00021999,2]
[315438422,1709038237371,-558.60659799,0.00021999,2]
[315438425,1709038237386,-16672.57179906,0.00022,2]
[315438465,1709038237727,-1287.25840715,0.00022,2]
[315438468,1709038237742,-2040.16979379,0.00022,2]
[315438470,1709038237752,-1750.0,0.00022,3]
[315438472,1709038237763,-155.0,0.00022,2]
[315438473,1709038237773,-155.46,0.00022046,2]
[315438474,1709038237784,-156.43,0.00022055,2]
[315438475,1709038237794,-565.2902,0.00022096,2]
[315438476,1709038237805,-511.0567,0.00022096,2]
[315438477,1709038237815,-188.05831707,0.00022104,3]
[315438478,1709038237826,-1370.75375934,0.00022104,3]
[315438479,1709038237836,-552.57042566,0.00022104,3]
[315438480,1709038237847,-1858.51118539,0.00022104,3]
[315438484,1709038237858,-238.39661396,0.00022104,3]
[315438486,1709038237869,-155.46,0.00022111,2]
[315438488,1709038237880,-158.08,0.00022137,2]
[315438490,1709038237890,-1500.0,0.00022163,2]
[315438492,1709038237898,-155.46,0.00022176,2]
[315438494,1709038237907,-156.43,0.00022192,2]
[315438496,1709038237916,-155.46,0.00022241,2]
[315438498,1709038237925,-150.0,0.00022271,2]
[315438500,1709038237934,-1500.0,0.00022284,2]
[315438502,1709038237943,-225.98280515,0.0002229,2]
[315438504,1709038237953,-155.46,0.00022306,2]
[315438506,1709038237962,-156.43,0.00022329,2]
[315438508,1709038237972,-413.39,0.00022333,2]
[315438510,1709038237981,-500.0,0.00022356,2]
[315438512,1709038237991,-158.08,0.00022356,2]
[315438514,1709038238001,-150.0,0.00022358,2]
[315438516,1709038238010,-150.0,0.00022366,2]
[315438518,1709038238019,-1500.0,0.00022366,2]
[315438520,1709038238030,-150.0,0.00022372,2]
[315438522,1709038238039,-150.0,0.00022379,2]
[315438524,1709038238049,-150.0,0.00022412,2]
[315438556,1709038238315,-1500.0,0.00022415,2]
[315438559,1709038238338,-150.0,0.00022442,2]
[315438562,1709038238349,-156.43,0.00022466,2]
[315438564,1709038238359,-150.0,0.00022522,2]
[315438566,1709038238369,-2366.0,0.00022522,2]
[315438568,1709038238380,-338.0,0.00022533,2]
[315438570,1709038238389,-150.0,0.00022545,2]
[315438572,1709038238399,-158.08,0.00022575,2]
[315438574,1709038238410,-777.57417191,0.000226,2]
[315438576,1709038238420,-156.43,0.00022603,2]
[315438578,1709038238430,-150.0,0.00022637,2]
[315438580,1709038238439,-828.52,0.0002264,2]
[315438582,1709038238448,-150.0,0.00022649,2]
[315438584,1709038238458,-150.0,0.00022686,2]
[315438586,1709038238467,-150.0,0.00022691,2]
[315438588,1709038238476,-150.0,0.00022694,2]
[315438590,1709038238486,-150.0,0.00022696,2]
[315438592,1709038238496,-2000.0,0.000227,2]
[315438594,1709038238506,-1903.47,0.0002273,3]
[315438596,1709038238515,-951.73,0.0002273,3]
[315438598,1709038238524,-237.93,0.0002273,3]
[315438600,1709038238534,-713.83,0.0002273,3]
[315438602,1709038238544,-204.0,0.00022736,2]
[315438604,1709038238554,-156.43,0.0002274,2]
[315438606,1709038238564,-155.2,0.0002274,2]
[315438608,1709038238574,-155.26,0.0002274,2]
[315438610,1709038238584,-475.87,0.0002275,3]
[315438612,1709038238593,-150.0,0.0002276,2]
[315438614,1709038238603,-150.0,0.00022778,2]
[315438616,1709038238612,-150.0,0.00022781,2]
[315438617,1709038238621,-184.5091,0.00022782,2]
[315438619,1709038238631,-2726.6063,0.00022782,2]
[315438621,1709038238641,-81661.3272,0.00022782,2]
[315438623,1709038238651,-12629.3761,0.00022782,2]
[315438625,1709038238660,-158.08,0.00022795,2]
[315438627,1709038238669,-152.9106692,0.00022798,2]
[315438629,1709038238679,-177.9,0.000228,2]
[315438631,1709038238689,-251.78372974,0.000228,2]
[315438633,1709038238698,-300.0,0.00022803,2]
[315438635,1709038238708,-150.0,0.00022807,2]
[315438637,1709038238717,-500.0,0.00022828,2]
[315438639,1709038238726,-500.0,0.00022828,2]
[315438641,1709038238736,-8119.4328,0.00022829,2]
[315438643,1709038238745,-200.0,0.0002283,2]
[315438645,1709038238755,-800.0,0.0002283,2]
[315438647,1709038238764,-200.0,0.0002283,2]
[315438649,1709038238772,-150.0,0.00022848,2]
[315438651,1709038238783,-156.43,0.00022877,2]
[315438653,1709038238795,-150.0,0.00022877,2]
[315438655,1709038238803,-153.05144852,0.00022879,2]
[315438657,1709038238812,-539.63335447,0.00022879,2]
[315438659,1709038238824,-2196.05737153,0.0002288,2]
[315438661,1709038238833,-259.91802584,0.0002288,2]
[315438663,1709038238842,-630.93403696,0.0002288,2]
[315438665,1709038238852,-500.0,0.00022898,2]
[315438667,1709038238862,-500.0,0.00022898,2]
[315438669,1709038238871,-500.0,0.00022898,2]
[315438671,1709038238880,-478.71068578,0.00022898,2]
[315438673,1709038238890,-500.0,0.00022898,2]
[315438675,1709038238899,-498.4511,0.00022898,2]
[315438678,1709038238908,-500.0,0.00022898,2]
[315438679,1709038238917,-500.0,0.00022898,2]
[315438682,1709038238927,-500.0,0.00022898,2]
[315438683,1709038238936,-500.0,0.00022898,2]
[315438685,1709038238945,-500.0,0.00022898,2]
[315438688,1709038238955,-500.0,0.00022898,2]
[315438690,1709038238964,-421.65361708,0.00022898,2]
[315438692,1709038238974,-500.0,0.00022898,2]
[315438694,1709038238983,-500.0,0.00022898,2]
[315438696,1709038238992,-335.46766919,0.00022898,2]
[315438697,1709038239002,-500.0,0.00022898,2]
[315438700,1709038239011,-500.0,0.00022898,2]
[315438702,1709038239021,-2545.19,0.00022898,2]
[315438703,1709038239031,-500.0,0.00022898,2]
[315438705,1709038239040,-500.0,0.00022898,2]
[315438707,1709038239050,-177.66065642,0.00022898,2]
[315438709,1709038239059,-567.57,0.00022898,2]
[315438712,1709038239068,-575.99,0.00022898,2]
[315438714,1709038239078,-500.0,0.00022898,2]
[315438715,1709038239087,-500.0,0.00022898,2]
[315438718,1709038239096,-579.24,0.00022898,2]
[315438720,1709038239105,-537.12878806,0.00022898,2]
[315438722,1709038239115,-500.0,0.00022898,2]
[315438724,1709038239124,-249.08408276,0.00022898,2]
[315438726,1709038239133,-897.33,0.00022898,2]
[315438728,1709038239143,-500.0,0.00022898,2]
[315438730,1709038239152,-500.0,0.00022898,2]
[315438731,1709038239161,-500.0,0.00022898,2]